bitfinex/quotes_BTCUSD_20260126
["timestamp","ask_amount","ask_price","bid_price","bid_amount"]
[1769390791129,1.14696026,87477.0,87470.0,0.0004671]
[1769390791338,1.15839183,87477.0,87470.0,0.0004671]
[1769390791767,1.14696026,87477.0,87470.0,0.0004671]
[1769390791984,0.01143209,87473.0,87461.0,0.0004]
[1769390792220,0.01143209,87473.0,87430.0,0.46615406]
[1769390792221,1.14664896,87463.0,87448.0,0.1166625]
[1769390792447,1.14613014,87463.0,87448.0,0.1166625]
[1769390792661,1.14659728,87463.0,87448.0,0.1166625]
[1769390793094,0.05763425,87463.0,87448.0,0.1166625]
[1769390793314,0.01143353,87462.0,87447.0,0.04572]
[1769390793530,1.1459044,87462.0,87448.0,0.00785863]
[1769390793754,0.11806409,87463.0,87448.0,0.00785863]
[1769390793755,0.01143366,87461.0,87448.0,0.00785863]
[1769390793967,1.26307066,87457.0,87442.0,0.0004671]
[1769390794189,0.01143432,87456.0,87442.0,0.0004671]
[1769390794404,0.01143589,87444.0,87425.0,0.11278929]
[1769390794612,0.11673446,87447.0,87425.0,0.11278929]
[1769390794613,1.1459044,87443.0,87425.0,0.11278929]
[1769390794851,1.1459044,87441.0,87425.0,0.11278929]
[1769390797614,1.1459044,87436.0,87421.0,0.0004]
[1769390797823,1.1459044,87436.0,87422.0,0.11278929]
[1769390798394,1.1459044,87452.0,87436.0,0.01]
[1769390798627,0.0114351,87450.0,87436.0,0.11716617]
[1769390798989,1.14637154,87450.0,87436.0,0.10047164]
[1769390799196,0.17606714,87450.0,87433.0,0.11278929]
[1769390799406,0.17606714,87450.0,87435.0,0.11278929]
[1769390799529,1.14637154,87450.0,87436.0,0.00819878]
[1769390799741,1.14637154,87450.0,87436.0,0.11278929]
[1769390799964,1.14637154,87450.0,87436.0,0.10743173]
[1769390800165,1.14637154,87450.0,87436.0,0.09670866]
[1769390800367,1.14637154,87450.0,87436.0,0.08930958]
[1769390800618,0.00046714,87450.0,87446.0,0.11278929]
[1769390800814,1.3215044,87467.0,87448.0,0.11278929]
[1769390800974,1.3215044,87467.0,87450.0,0.11278929]
[1769390801173,1.1608347,87466.0,87452.0,0.01143484]
[1769390801378,0.1756,87472.0,87455.0,0.11278929]
[1769390801587,1.1459044,87470.0,87456.0,0.11278929]
[1769390801795,1.15733715,87468.0,87456.0,0.11278929]
[1769390802003,1.1608347,87467.0,87456.0,0.11278929]
[1769390802207,1.3215044,87472.0,87456.0,0.11278929]
[1769390802424,1.1608347,87471.0,87456.0,0.11278929]
[1769390802657,1.1459044,87487.0,87467.0,0.11278929]
[1769390802884,0.01143053,87485.0,87467.0,0.11278929]
[1769390803123,0.01143079,87483.0,87467.0,0.11278929]
[1769390803329,0.0149303,87482.0,87467.0,0.11278929]
[1769390803537,0.02636122,87482.0,87467.0,0.11278929]
[1769390803769,0.0149303,87482.0,87467.0,0.11278929]
[1769390803968,0.11759695,87490.0,87467.0,0.11278929]
[1769390803969,1.1459044,87481.0,87467.0,0.11278929]
[1769390804531,1.1459044,87486.0,87467.0,0.11278929]
[1769390804751,1.1459044,87484.0,87467.0,0.11278929]
[1769390805017,0.0149303,87483.0,87467.0,0.11278929]
[1769390805636,1.1608347,87483.0,87467.0,0.11278929]
[1769390805838,0.01143026,87487.0,87467.0,0.11278929]
[1769390805839,1.1459044,87485.0,87467.0,0.11278929]
[1769390806070,0.0149303,87484.0,87467.0,0.11278929]
[1769390806295,1.1608347,87484.0,87467.0,0.11278929]
[1769390806505,0.01143105,87481.0,87467.0,0.11278929]
[1769390806717,0.0114317,87476.0,87467.0,0.11278929]
[1769390806926,0.0149303,87475.0,87467.0,0.11278929]
[1769390807135,0.0149303,87476.0,87467.0,0.11278929]
[1769390807529,0.0114304,87486.0,87467.0,0.11278929]
[1769390807740,0.0149303,87484.0,87467.0,0.11278929]
[1769390807955,0.0149303,87484.0,87470.0,0.01143249]
[1769390808165,0.1756,87489.0,87469.0,0.11278929]
[1769390808388,0.1756,87489.0,87472.0,1.14073235]
[1769390808578,0.1756,87489.0,87475.0,0.11278929]
[1769390808783,0.1756,87489.0,87475.0,0.10594191]
[1769390808989,0.18703,87489.0,87475.0,0.09652266]
[1769390809195,0.01143026,87487.0,87475.0,0.08710061]
[1769390809393,0.01143013,87488.0,87475.0,0.07767575]
[1769390809597,0.01143053,87485.0,87475.0,0.07767575]
[1769390810015,0.0114304,87486.0,87475.0,0.07767575]
[1769390810207,1.1459044,87474.0,87454.0,0.12422387]
[1769390810384,0.0149303,87473.0,87460.0,0.01143379]
[1769390810611,1.1459044,87474.0,87459.0,0.11278929]
[1769390810772,0.01143118,87480.0,87461.0,0.11278929]
[1769390811111,0.0149303,87479.0,87463.0,0.11278929]
[1769390811417,0.01142948,87493.0,87473.0,0.11278929]
[1769390811590,0.01142961,87492.0,87475.0,1.14073235]
[1769390811775,0.01142974,87491.0,87476.0,0.11278929]
[1769390812198,0.01143,87489.0,87476.0,0.11278929]
[1769390812398,1.1459044,87486.0,87466.0,0.11278929]
[1769390812598,1.1459044,87486.0,87467.0,0.11278929]
[1769390812803,1.1459044,87486.0,87469.0,1.14073235]
[1769390812975,1.1459044,87486.0,87470.0,0.11278929]
[1769390813366,0.12902669,87491.0,87471.0,1.14073235]
[1769390813566,1.15733427,87490.0,87472.0,0.11278929]
[1769390813768,0.01143013,87488.0,87472.0,0.11278929]
[1769390813967,1.1459044,87487.0,87472.0,0.11278929]
[1769390815249,0.12902669,87491.0,87472.0,0.11278929]
[1769390815400,0.11759695,87491.0,87473.0,0.11278929]
[1769390815586,0.12902669,87491.0,87473.0,0.11278929]
[1769390815788,1.26350135,87491.0,87473.0,0.13431102]
[1769390816235,0.01143,87489.0,87473.0,0.11278929]
[1769390816398,0.01143053,87485.0,87473.0,0.11278929]
[1769390816598,1.1459044,87486.0,87473.0,0.13545463]
[1769390816797,1.1459044,87486.0,87474.0,0.02267593]
[1769390817826,0.11759695,87491.0,87474.0,0.02267593]
[1769390818001,1.26350135,87491.0,87474.0,0.02267593]
[1769390818264,1.26350135,87491.0,87474.0,0.13546522]
[1769390819051,0.01142935,87494.0,87474.0,0.13546522]
[1769390819052,0.01142935,87494.0,87475.0,0.11278929]
[1769390819290,1.1459044,87490.0,87476.0,0.02286341]
[1769390819427,1.1459044,87490.0,87476.0,0.11278929]
[1769390819747,0.01142935,87494.0,87476.0,0.11278929]
[1769390819748,1.1459044,87494.0,87476.0,0.11278929]
[1769390819920,1.1459044,87492.0,87476.0,0.11278929]
[1769390820122,0.11387532,87491.0,87476.0,0.11278929]
[1769390820325,1.1459044,87492.0,87477.0,0.02286315]
[1769390820522,1.1459044,87490.0,87477.0,0.02286315]
[1769390821125,0.11397762,87489.0,87477.0,0.02286315]
[1769390821338,0.11397762,87488.0,87477.0,0.02286315]
[1769390821585,0.11397762,87487.0,87477.0,0.02286315]
[1769390821971,0.18702883,87498.0,87477.0,0.02286315]
[1769390821972,0.01142987,87490.0,87477.0,0.02286315]
[1769390822159,0.14826892,87489.0,87455.0,0.1756]
[1769390822363,0.14826892,87489.0,87466.0,0.11278929]
[1769390822364,0.01143026,87487.0,87466.0,0.11278929]
[1769390822584,0.03429315,87489.0,87466.0,0.11278929]
[1769390822585,1.28274332,87486.0,87466.0,1.15216536]
[1769390822764,0.1756,87495.0,87475.0,0.12422112]
[1769390822931,0.11396991,87494.0,87476.0,0.11278929]
[1769390823134,0.11396991,87493.0,87476.0,0.11278929]
[1769390823339,0.11396991,87492.0,87476.0,0.11278929]
[1769390823537,0.11396991,87491.0,87479.0,0.01143131]
[1769390823721,1.05896853,87494.0,87478.0,0.11831398]
[1769390823917,0.11396046,87493.0,87478.0,0.11831398]
[1769390824128,0.11396046,87492.0,87478.0,0.12974542]
[1769390824329,1.05896853,87494.0,87478.0,0.12974542]
[1769390824532,0.10257003,87509.0,87488.0,1.07197036]
[1769390824734,0.03429067,87508.0,87490.0,0.11831398]
[1769390824980,1.0932592,87508.0,87490.0,0.11831398]
[1769390825119,0.01142765,87507.0,87490.0,0.11831398]
[1769390825522,0.02286315,87506.0,87490.0,0.11831398]
[1769390825798,1.05896853,87505.0,87490.0,0.11831398]
[1769390825974,1.05910866,87505.0,87490.0,0.11831398]
[1769390826736,1.05910866,87505.0,87496.0,0.01142909]
[1769390826737,0.00014013,87505.0,87496.0,0.01142909]
[1769390826936,0.0004671,87512.0,87500.0,0.11831398]
[1769390827158,0.0004671,87512.0,87501.0,1.07197036]
[1769390827360,0.0004671,87512.0,87502.0,0.11831398]
[1769390827562,0.0004671,87512.0,87502.0,1.19028434]
[1769390828298,0.0004671,87512.0,87502.0,0.01142831]
[1769390828459,0.0004671,87512.0,87505.0,0.11831398]
[1769390828662,0.0004671,87512.0,87506.0,1.07197036]
[1769390828867,0.0004671,87512.0,87509.0,0.11831398]
[1769390829057,0.0004671,87512.0,87509.0,0.11667907]
[1769390829680,0.0004671,87512.0,87510.0,1.07197036]
[1769390829847,0.0004671,87512.0,87507.0,1.19028434]
[1769390830054,0.0004671,87512.0,87503.0,0.12974215]
[1769390830248,0.0004671,87512.0,87504.0,0.01142804]
[1769390830473,0.0004671,87512.0,87503.0,0.11831398]
[1769390831251,0.09114264,87525.0,87509.0,0.01142739]
[1769390831456,0.0002295,87525.0,87510.0,0.11831398]
[1769390831651,0.0002295,87525.0,87510.0,0.12974124]
[1769390832191,0.0002295,87525.0,87519.0,1.07197036]
[1769390832513,0.09114264,87533.0,87521.0,0.11831398]
[1769390832844,0.13674259,87540.0,87521.0,0.11831398]
[1769390832845,1.15011117,87535.0,87521.0,0.11831398]
[1769390833338,0.09114264,87536.0,87521.0,0.11831398]
[1769390833734,1.05896853,87535.0,87521.0,0.11831398]
[1769390834560,0.09114264,87534.0,87521.0,0.11831398]
[1769390834762,1.15011117,87534.0,87521.0,0.11831398]
[1769390835164,1.05896853,87532.0,87509.0,0.01156752]
[1769390835373,1.08183168,87531.0,87514.0,0.11831398]
[1769390835571,1.05896853,87531.0,87514.0,0.11831398]
[1769390835780,1.07039305,87531.0,87514.0,0.11831398]
[1769390836171,0.09114264,87533.0,87515.0,1.06687845]
[1769390836377,0.05711706,87540.0,87510.0,0.17556]
[1769390836378,1.08643647,87527.0,87510.0,0.17556]
[1769390836569,0.8762855,87525.0,87510.0,0.17556]
[1769390836773,0.01142491,87528.0,87510.0,0.17556]
[1769390836774,1.08643647,87523.0,87510.0,0.17556]
[1769390837207,0.14367282,87522.0,87510.0,0.17556]
[1769390837344,1.08643647,87521.0,87510.0,0.17556]
[1769390838031,1.08643647,87521.0,87509.0,0.00014013]
[1769390838160,1.08643647,87521.0,87498.0,0.01142883]
[1769390838161,0.12080967,87517.0,87498.0,0.01142883]
[1769390838363,1.20724614,87516.0,87498.0,0.01142883]
[1769390838564,0.12080967,87515.0,87498.0,0.01142883]
[1769390838786,1.08643647,87514.0,87498.0,0.01142883]
[1769390839105,0.00014044,87517.0,87509.0,0.01142739]
[1769390839322,0.00014044,87517.0,87510.0,0.11411956]
[1769390839472,0.89884259,87527.0,87511.0,0.13584391]
[1769390839657,0.11386805,87526.0,87511.0,0.13584391]
[1769390839859,0.11386805,87525.0,87511.0,0.13584391]
[1769390840059,0.11386805,87524.0,87511.0,0.13584391]
[1769390840306,1.08643647,87526.0,87511.0,0.13584391]
[1769390840475,0.11387243,87525.0,87511.0,0.13584391]
[1769390840691,1.08643647,87523.0,87511.0,0.02172435]
[1769390840903,1.08643647,87523.0,87512.0,0.02269325]
[1769390841127,0.09149627,87538.0,87512.0,0.00014044]
[1769390841331,1.08643647,87525.0,87512.0,0.00014044]
[1769390841540,1.09786203,87523.0,87512.0,0.00014044]
[1769390841738,1.09786229,87521.0,87512.0,0.00014044]
[1769390841938,1.08643647,87521.0,87512.0,0.00014044]
[1769390843223,0.12080967,87524.0,87512.0,0.00014044]
[1769390843419,0.12080967,87531.0,87513.0,0.11411956]
[1769390843617,0.11389439,87530.0,87515.0,0.11411956]
[1769390843825,1.21175564,87529.0,87516.0,0.02269221]
[1769390844099,0.11389345,87528.0,87516.0,0.02269221]
[1769390844275,1.08643647,87529.0,87516.0,0.02269221]
[1769390844452,0.1139004,87528.0,87516.0,0.02269221]
[1769390844630,1.08643647,87529.0,87516.0,0.02269221]
[1769390844830,0.11390073,87528.0,87516.0,0.02269221]
[1769390845078,1.08643647,87529.0,87516.0,0.02269221]
[1769390845310,0.1139103,87528.0,87516.0,0.02269221]
[1769390845534,0.01142491,87528.0,87516.0,0.02269221]
[1769390845732,1.08643647,87527.0,87512.0,0.00014044]
[1769390845933,0.12080967,87526.0,87512.0,0.00014044]
[1769390846139,0.01142517,87526.0,87512.0,0.00014044]
[1769390846336,1.09786216,87522.0,87512.0,0.00014044]
[1769390846535,1.08643647,87523.0,87512.0,0.00014044]
[1769390846794,1.08643647,87521.0,87512.0,0.00014044]
[1769390847575,1.08643647,87519.0,87512.0,0.00014044]
[1769390847758,1.08643647,87519.0,87505.0,0.09976]
[1769390847961,1.08657688,87519.0,87505.0,0.09976]
[1769390848847,0.00014041,87519.0,87505.0,0.09976]
[1769390849372,1.08657688,87519.0,87505.0,0.09976]
[1769390849524,1.20045207,87518.0,87500.0,1.18099801]
[1769390849726,1.08643647,87518.0,87500.0,1.18099801]
[1769390849929,1.08643647,87518.0,87500.0,1.19242658]
[1769390850134,1.08643647,87518.0,87500.0,1.2381407]
[1769390850341,1.08643647,87518.0,87501.0,0.11411956]
[1769390852446,0.11409711,87517.0,87501.0,0.11411956]
[1769390852648,0.11409711,87516.0,87501.0,0.11411956]
[1769390852858,1.08643647,87518.0,87501.0,0.11411956]
[1769390853065,0.01142752,87508.0,87497.0,0.17556]
[1769390853266,1.11848005,87500.0,87493.0,0.04572]
[1769390853844,1.11848005,87500.0,87485.0,0.11411956]
[1769390854046,0.11534213,87503.0,87485.0,1.1808533]
[1769390854248,1.11848005,87506.0,87489.0,1.06673374]
[1769390854451,0.11417752,87505.0,87490.0,0.11711443]
[1769390854638,1.12990822,87503.0,87490.0,0.00228542]
[1769390854839,0.11534213,87500.0,87482.0,0.01143092]
[1769390855055,1.23382218,87499.0,87482.0,0.00342873]
[1769390855316,1.23382218,87499.0,87484.0,0.01143066]
[1769390855438,1.23382218,87499.0,87485.0,0.00342861]
[1769390856102,0.17552,87508.0,87487.0,0.01143026]
[1769390856303,0.11418441,87507.0,87490.0,1.06673374]
[1769390856492,0.11418441,87506.0,87491.0,0.11825738]
[1769390856683,0.01142648,87516.0,87494.0,0.11482901]
[1769390856864,0.01142674,87514.0,87496.0,0.11482901]
[1769390857230,0.13534556,87513.0,87496.0,0.11482901]
[1769390857505,0.11418972,87512.0,87501.0,0.11482901]
[1769390857809,0.11418972,87511.0,87503.0,0.11482901]
[1769390857959,0.17552,87518.0,87503.0,0.11482901]
[1769390858157,0.17552,87518.0,87506.0,0.11482901]
[1769390858509,0.17552,87518.0,87508.0,0.11482901]
[1769390859294,0.09109627,87542.0,87527.0,1.06673374]
[1769390859489,0.0004665,87553.0,87539.0,0.01142347]
[1769390859695,0.1141358,87552.0,87537.0,1.07815748]
[1769390859893,0.1141358,87552.0,87528.0,0.42768745]
[1769390859894,0.1141358,87551.0,87543.0,0.05711471]
[1769390860094,0.00060688,87553.0,87544.0,0.12617618]
[1769390860301,0.00060688,87553.0,87546.0,0.01142256]
[1769390860499,0.00060688,87553.0,87547.0,0.11482901]
[1769390861169,1.23382218,87568.0,87547.0,0.11482901]
[1769390861286,1.23382218,87568.0,87529.0,0.04107713]
[1769390861287,0.17552,87583.0,87562.0,1.06673374]
[1769390861488,0.09109627,87586.0,87565.0,0.11482901]
[1769390861689,0.01141721,87587.0,87565.0,0.11482901]
[1769390861690,1.11848005,87584.0,87565.0,1.18156275]
[1769390861935,0.17552,87583.0,87565.0,1.18156275]
[1769390862632,0.01141787,87582.0,87565.0,0.11482901]
[1769390862791,0.01141839,87578.0,87565.0,0.11482901]
[1769390862991,0.01,87565.0,87562.0,0.00046821]
[1769390863181,0.01,87565.0,87546.0,0.01142256]
[1769390863383,0.01046812,87565.0,87550.0,0.11482901]
[1769390864003,0.01046812,87565.0,87552.0,0.11482901]
[1769390864198,0.01046812,87565.0,87552.0,1.06673374]
[1769390864379,0.00046812,87565.0,87553.0,0.11482901]
[1769390865980,1.29396005,87564.0,87543.0,0.11482901]
[1769390866154,0.01142047,87562.0,87543.0,0.11482901]
[1769390866299,0.01142034,87563.0,87544.0,0.11482901]
[1769390866518,1.12990079,87560.0,87536.0,0.12625288]
[1769390866721,0.11534213,87559.0,87537.0,0.01142374]
[1769390866920,0.01142074,87560.0,87538.0,0.01142361]
[1769390866921,1.11848005,87556.0,87538.0,0.01142361]
[1769390867368,0.11534213,87557.0,87540.0,0.01142334]
[1769390867530,1.11848005,87556.0,87538.0,0.11482901]
[1769390867922,1.11848005,87556.0,87543.0,0.001]
[1769390868237,1.23382218,87556.0,87543.0,0.001]
[1769390868458,1.23382218,87556.0,87538.0,0.11482901]
[1769390868639,1.23382218,87556.0,87538.0,0.12625262]
[1769390868832,0.05710174,87563.0,87538.0,0.12625262]
[1769390868833,0.18690021,87564.0,87540.0,0.01142334]
[1769390869036,0.11534213,87559.0,87535.0,0.03423816]
[1769390869237,0.0114206,87561.0,87538.0,0.01142361]
[1769390869238,1.11848005,87556.0,87538.0,0.01142361]
[1769390869442,1.11848005,87591.0,87544.0,1.06673374]
[1769390869628,0.04568,87577.0,87570.0,0.11482901]
[1769390870022,0.04568,87577.0,87561.0,0.11482901]
[1769390870222,0.04568,87577.0,87564.0,0.01142021]
[1769390870482,0.04568,87577.0,87561.0,0.12624961]
[1769390870946,0.04568,87577.0,87561.0,0.11482901]
[1769390871492,1.11260517,87576.0,87561.0,0.11482901]
[1769390872299,0.01141878,87575.0,87561.0,0.11482901]
[1769390872502,1.11260517,87576.0,87561.0,0.11482901]
[1769390872708,1.12402382,87576.0,87561.0,0.11482901]
[1769390873116,0.01141878,87575.0,87561.0,0.11482901]
[1769390873312,0.11534213,87573.0,87547.0,0.11482901]
[1769390873513,0.01142126,87556.0,87536.0,0.11482901]
[1769390873791,1.11260517,87554.0,87536.0,0.11482901]
[1769390874011,1.11260517,87554.0,87538.0,0.01142361]
[1769390874217,0.22112,87553.0,87539.0,0.01142347]
[1769390874414,0.22112,87553.0,87535.0,0.12625301]
[1769390874589,0.22112,87553.0,87537.0,0.11482901]
[1769390875112,0.22112,87552.0,87537.0,0.11529713]
[1769390875515,0.01142191,87551.0,87537.0,0.11529713]
[1769390875866,1.11260517,87550.0,87537.0,0.00046812]
[1769390876212,1.12402721,87550.0,87537.0,0.00046812]
[1769390876416,0.01142191,87551.0,87523.0,0.01142556]
[1769390876417,0.11534213,87548.0,87523.0,0.01142556]
[1769390876621,1.11214173,87546.0,87527.0,0.01142504]
[1769390876820,0.00046783,87548.0,87530.0,0.01142465]
[1769390877020,0.00046783,87548.0,87532.0,0.1262534]
[1769390877223,0.00046783,87548.0,87532.0,0.11482901]
[1769390877224,0.22112,87547.0,87532.0,0.11482901]
[1769390878032,0.22112,87546.0,87532.0,0.11482901]
[1769390878688,0.22112,87546.0,87533.0,0.01900274]
[1769390879108,1.11214173,87545.0,87533.0,0.01900274]
[1769390880055,1.12356442,87545.0,87532.0,0.11482901]
[1769390880325,0.00046783,87548.0,87533.0,0.02180513]
[1769390880454,0.22112,87544.0,87534.0,0.11482901]
[1769390880662,0.22112,87544.0,87536.0,0.11482901]
[1769390881034,0.22112,87544.0,87537.0,0.02284748]
[1769390883313,0.00046783,87548.0,87537.0,0.02284748]
[1769390883639,0.22112,87547.0,87541.0,0.12963491]
[1769390884145,0.22112,87547.0,87542.0,0.02163651]
[1769390884371,0.00046783,87548.0,87542.0,0.02163651]
[1769390884571,0.00046783,87548.0,87532.0,0.12963491]
[1769390884572,0.22112,87546.0,87532.0,0.12963491]
[1769390885051,1.28923736,87546.0,87532.0,0.12963491]
[1769390885214,0.22112,87546.0,87532.0,1.12306971]
[1769390885419,0.22112,87546.0,87533.0,0.12963491]
[1769390885621,0.22112,87546.0,87534.0,0.14105904]
[1769390885820,0.22112,87546.0,87534.0,1.11164532]
[1769390886025,0.22112,87546.0,87535.0,0.12963491]
[1769390886711,0.00046783,87548.0,87535.0,0.12963491]
[1769390886712,0.22112,87545.0,87535.0,0.12963491]
[1769390887616,0.01142295,87543.0,87518.0,0.01142622]
[1769390887771,1.17445949,87544.0,87522.0,0.1410606]
[1769390887969,1.17445949,87544.0,87524.0,0.14106034]
[1769390888172,1.17445949,87544.0,87524.0,0.01142543]
[1769390888379,1.17445949,87544.0,87525.0,0.14106021]
[1769390888604,1.17445949,87544.0,87524.0,0.01142543]
[1769390888605,1.17445949,87544.0,87526.0,0.12963491]
[1769390889215,0.11776495,87544.0,87526.0,0.12963491]
[1769390889407,1.07954044,87542.0,87526.0,0.12963491]
[1769390889569,1.06811736,87543.0,87526.0,0.12963491]
[1769390890158,0.22112,87545.0,87528.0,0.12963491]
[1769390890366,0.22112,87545.0,87529.0,0.12963491]
[1769390890921,0.22112,87545.0,87532.0,0.12963491]
[1769390891155,0.22112,87545.0,87536.0,0.12963491]
[1769390891328,0.22112,87545.0,87535.0,1.11164532]
[1769390891329,0.22112,87545.0,87538.0,0.12963491]
[1769390891748,0.00046783,87548.0,87538.0,0.12963491]
[1769390891897,0.22116,87547.0,87540.0,0.12963491]
[1769390892299,0.22116,87547.0,87516.0,1.1230718]
[1769390892300,1.06811736,87539.0,87516.0,1.1230718]
[1769390892554,1.06811736,87539.0,87520.0,0.01142595]
[1769390892753,1.06811736,87539.0,87516.0,0.01142648]
[1769390893061,1.06811736,87540.0,87520.0,0.14106086]
[1769390893258,1.06811736,87540.0,87522.0,0.12963491]
[1769390893437,1.0795407,87540.0,87522.0,0.12963491]
[1769390893674,0.10087048,87544.0,87522.0,0.1410606]
[1769390893844,0.10087048,87544.0,87520.0,0.01142595]
[1769390893845,1.06811736,87542.0,87523.0,0.13077802]
[1769390894044,1.06811736,87542.0,87523.0,0.12963491]
[1769390894045,0.02184159,87541.0,87523.0,0.12963491]
[1769390894457,0.02184159,87541.0,87526.0,0.01142517]
[1769390894622,0.01142178,87552.0,87530.0,0.12963491]
[1769390894825,0.22116,87547.0,87533.0,0.12963491]
[1769390895063,0.22116,87547.0,87535.0,0.12963491]
[1769390895265,0.03326415,87546.0,87525.0,0.12963491]
[1769390895422,1.06811736,87545.0,87526.0,0.12963491]
[1769390895640,0.19712724,87544.0,87526.0,0.14106008]
[1769390895866,0.24280724,87544.0,87528.0,0.12963491]
[1769390896039,0.02062349,87543.0,87528.0,0.12963491]
[1769390896245,0.02062349,87543.0,87530.0,0.13466289]
[1769390897759,0.01142308,87542.0,87530.0,0.13466289]
[1769390897984,0.0012181,87541.0,87530.0,0.13466289]
[1769390898187,0.22116,87540.0,87530.0,0.13466289]
[1769390898381,0.23258334,87540.0,87530.0,0.13466289]
[1769390898873,0.01142347,87539.0,87530.0,0.13466289]
[1769390899292,0.01142361,87538.0,87530.0,0.13466289]
[1769390899501,0.011424,87535.0,87509.0,0.01142739]
[1769390899812,0.01142426,87533.0,87515.0,1.10225546]
[1769390900020,0.01142413,87534.0,87516.0,0.15498808]
[1769390900317,0.01142413,87534.0,87518.0,0.13466289]
[1769390900525,0.011424,87535.0,87518.0,0.13466289]
[1769390901015,1.15830862,87534.0,87518.0,0.13466289]
[1769390901178,0.01142387,87536.0,87518.0,0.13466289]
[1769390901386,0.011424,87535.0,87520.0,0.13466289]
[1769390903539,1.15830875,87533.0,87520.0,0.13466289]
[1769390903791,0.10356,87535.0,87515.0,1.25838607]
[1769390904008,0.01142413,87534.0,87516.0,0.13466289]
[1769390904259,1.15830862,87534.0,87516.0,0.13436289]
[1769390904513,1.14688449,87534.0,87516.0,0.13436289]
[1769390904735,1.15830862,87534.0,87516.0,0.13436289]
[1769390904962,1.14688449,87534.0,87516.0,0.13436289]
[1769390906031,1.14688449,87534.0,87517.0,1.10225546]
[1769390906259,1.14688449,87534.0,87518.0,0.13466289]
[1769390906504,0.011424,87535.0,87518.0,0.13466289]
[1769390906697,0.011424,87535.0,87520.0,0.13466289]
[1769390906698,1.14688449,87535.0,87520.0,0.13466289]
[1769390907772,0.01142413,87534.0,87520.0,0.13466289]
[1769390908090,0.01142439,87532.0,87520.0,0.13466289]
[1769390908291,1.14688449,87531.0,87520.0,0.13466289]
[1769390908889,0.01,87520.0,87502.0,0.13466289]
[1769390909112,0.2212,87519.0,87504.0,0.13466289]
[1769390909309,0.2212,87519.0,87506.0,0.13466289]
[1769390910095,0.2212,87519.0,87506.0,0.13480327]
[1769390910305,0.2212,87519.0,87506.0,1.10239584]
[1769390910464,0.2212,87519.0,87507.0,0.13466289]
[1769390911780,0.2212,87519.0,87508.0,1.10225546]
[1769390911994,0.2212,87519.0,87509.0,0.13466289]
[1769390912818,0.2212,87519.0,87511.0,0.13466289]
[1769390913179,0.04572,87521.0,87513.0,1.07324646]
[1769390913398,0.17548,87527.0,87515.0,0.13635915]
[1769390913608,0.17548,87527.0,87514.0,1.0811906]
[1769390913609,0.01318406,87526.0,87517.0,0.13635915]
[1769390913864,0.01318406,87526.0,87518.0,0.01937767]
[1769390915888,0.01142347,87539.0,87524.0,0.13635915]
[1769390916089,0.01142334,87540.0,87526.0,0.13635915]
[1769390916292,0.0012181,87543.0,87528.0,0.13293115]
[1769390916560,0.01142295,87543.0,87528.0,0.12607515]
[1769390916755,0.01142308,87542.0,87528.0,0.12264715]
[1769390916921,0.01142308,87542.0,87528.0,0.11579115]
[1769390917117,1.10083801,87543.0,87528.0,0.11579115]
[1769390917118,0.0012181,87541.0,87528.0,0.11579115]
[1769390917319,1.10083801,87543.0,87528.0,0.11579115]
[1769390917520,0.01142321,87541.0,87528.0,0.11579115]
[1769390917747,0.0012181,87540.0,87528.0,0.11579115]
[1769390918110,0.01142321,87541.0,87528.0,0.11579115]
[1769390918354,0.0012181,87540.0,87528.0,0.11579115]
[1769390919009,1.10083801,87543.0,87528.0,0.11579115]
[1769390919305,0.01264118,87542.0,87528.0,0.11579115]
[1769390919807,0.01264118,87542.0,87518.0,0.06855726]
[1769390919808,0.0913775,87573.0,87551.0,0.13635915]
[1769390919995,0.17047505,87593.0,87563.0,0.01142034]
[1769390919996,0.01141721,87587.0,87563.0,0.01142034]
[1769390920162,0.10990591,87586.0,87570.0,0.42750421]
[1769390920368,0.00010898,87588.0,87566.0,0.01141995]
[1769390920567,0.00010898,87588.0,87568.0,0.13635915]
[1769390920741,0.00010898,87588.0,87570.0,0.13635915]
[1769390920946,0.01141721,87587.0,87570.0,0.13635915]
[1769390921150,0.01141748,87585.0,87570.0,0.13635915]
[1769390921345,0.01141761,87584.0,87570.0,0.13635915]
[1769390921543,0.01141748,87585.0,87570.0,0.13635915]
[1769390921952,0.01141748,87585.0,87570.0,0.13735915]
[1769390922148,0.00057739,87588.0,87572.0,0.13635915]
[1769390922404,1.08999245,87588.0,87572.0,0.13635915]
[1769390922530,0.01141734,87586.0,87572.0,0.13635915]
[1769390922757,0.01141721,87587.0,87572.0,0.13635915]
[1769390923157,1.10140953,87588.0,87572.0,0.13635915]
[1769390923158,1.08999245,87588.0,87572.0,0.13635915]
[1769390923700,1.08999245,87588.0,87572.0,0.13735915]
[1769390924311,1.08999245,87588.0,87572.0,0.13655574]
[1769390924718,0.01199447,87588.0,87572.0,0.13555574]
[1769390924890,1.10083227,87587.0,87572.0,0.13555574]
[1769390925255,0.00057739,87588.0,87572.0,0.13555574]
[1769390925427,1.08941506,87587.0,87572.0,0.13555574]
[1769390927552,0.00057739,87588.0,87572.0,0.13555574]
[1769390927756,1.08941506,87587.0,87572.0,0.13555574]
[1769390928144,1.10083227,87587.0,87572.0,0.13525773]
[1769390928366,1.10083227,87587.0,87572.0,0.13257564]
[1769390928899,1.08941506,87587.0,87572.0,0.13257564]
[1769390933129,1.08941506,87587.0,87573.0,0.15558716]
[1769390933379,1.08941506,87600.0,87585.0,0.13635915]
[1769390933533,1.08941506,87600.0,87585.0,0.13293115]
[1769390933534,0.11366226,87599.0,87585.0,0.13293115]
[1769390933733,1.08955547,87600.0,87585.0,0.13293115]
[1769390933734,0.11366226,87598.0,87585.0,0.14434863]
[1769390933941,0.00014041,87600.0,87592.0,0.13635915]
[1769390934137,0.00014041,87600.0,87589.0,0.01141695]
[1769390934138,0.00014041,87600.0,87594.0,0.13635915]
[1769390934511,1.08941506,87613.0,87604.0,0.011415]
[1769390934682,0.11361072,87612.0,87599.0,0.13635915]
[1769390934895,0.11361072,87611.0,87599.0,0.13635915]
[1769390935090,1.08941506,87613.0,87599.0,0.13635915]
[1769390935241,0.1136103,87612.0,87599.0,0.13635915]
[1769390935430,0.113576,87611.0,87599.0,0.13635915]
[1769390935627,0.0004359,87614.0,87604.0,0.011415]
[1769390935833,0.0004359,87614.0,87604.0,0.14791456]
[1769390936040,0.0004359,87614.0,87604.0,0.13649956]
[1769390938002,1.08941506,87603.0,87592.0,0.1754]
[1769390938301,0.00014028,87603.0,87593.0,0.13635915]
[1769390939988,0.00014028,87603.0,87595.0,0.13635915]
[1769390940898,0.0004359,87614.0,87603.0,0.01141513]
[1769390941104,0.0004359,87614.0,87604.0,0.13635915]
[1769390941304,0.0004359,87614.0,87604.0,0.13649943]
[1769390942719,1.08941506,87613.0,87604.0,0.00014028]
[1769390942959,1.08941506,87613.0,87595.0,0.001]
[1769390943199,1.1736691,87613.0,87595.0,0.001]
[1769390943418,0.08434265,87612.0,87595.0,0.001]
[1769390943592,1.05129117,87611.0,87594.0,0.13635915]
[1769390943755,1.05129117,87607.0,87592.0,0.17536]